bitfinex-derivatives/quotes_BTCF0:USTF0_20250926
["timestamp","ask_amount","ask_price","bid_price","bid_amount"]
[1758907783868,0.5259668,109960.0,109950.0,0.092895]
[1758907784770,0.81772927,109960.0,109950.0,0.002]
[1758907785867,0.5259668,109960.0,109950.0,0.0928951]
[1758907786170,0.5259668,109960.0,109950.0,0.002]
[1758907786469,0.81772927,109960.0,109950.0,0.002]
[1758907790267,0.5259668,109960.0,109950.0,0.002]
[1758907790467,1.70088927,109960.0,109950.0,0.002]
[1758907791168,1.70084927,109960.0,109950.0,0.002]
[1758907796170,1.0090868,109960.0,109950.0,0.0928951]
[1758907796375,0.03508,109960.0,109950.0,0.38465757]
[1758907796968,0.03508,109960.0,109950.0,0.0928951]
[1758907797169,0.03508,109960.0,109950.0,0.38465757]
[1758907797566,0.03508,109960.0,109950.0,0.0928951]
[1758907797879,0.1259668,109960.0,109950.0,0.0928951]
[1758907798771,0.1259668,109960.0,109950.0,0.38465757]
[1758907799577,0.03508,109960.0,109950.0,0.38465757]
[1758907799973,0.03508,109960.0,109950.0,0.78465757]
[1758907800168,0.01349,109960.0,109950.0,0.78465757]
[1758907800374,0.01349,109960.0,109950.0,0.87560386]
[1758907800774,0.01349,109960.0,109950.0,0.956018]
[1758907800974,0.01349,109960.0,109950.0,1.839138]
[1758907801173,0.01349,109960.0,109950.0,1.75880386]
[1758907801375,0.03461,109960.0,109950.0,1.06696139]
[1758907801572,0.03461,109960.0,109950.0,0.38465757]
[1758907801972,0.03461,109960.0,109950.0,0.78465757]
[1758907802374,0.03461,109960.0,109950.0,0.38465757]
[1758907805078,0.03461,109960.0,109950.0,0.0928951]
[1758907805476,0.1254968,109960.0,109950.0,0.0928951]
[1758907805683,0.81725927,109960.0,109950.0,0.002]
[1758907806181,0.5254968,109960.0,109950.0,0.002]
[1758907806374,0.81725927,109960.0,109950.0,0.002]
[1758907807682,0.1254968,109960.0,109950.0,0.0928951]
[1758907807881,0.03461,109960.0,109950.0,0.38465757]
[1758907808485,0.03461,109960.0,109950.0,0.4928951]
[1758907808681,0.03461,109960.0,109950.0,0.78465757]
[1758907808880,0.01349,109960.0,109950.0,0.87560386]
[1758907809383,0.0367,109960.0,109950.0,0.87560386]
[1758907809884,0.0367,109960.0,109950.0,0.47560386]
[1758907810084,0.01349,109960.0,109950.0,0.87560386]
[1758907810979,0.01349,109960.0,109950.0,1.46848139]
[1758907811180,0.0367,109960.0,109950.0,0.47560386]
[1758907811981,0.0367,109960.0,109950.0,0.87560386]
[1758907812485,0.0367,109960.0,109950.0,0.4928951]
[1758907812681,0.0367,109960.0,109950.0,0.0928951]
[1758907814180,0.0367,109960.0,109950.0,0.38465757]
[1758907814984,0.0367,109960.0,109950.0,0.0928951]
[1758907815982,0.0367,109960.0,109950.0,0.38465757]
[1758907816889,0.0367,109960.0,109950.0,0.0928951]
[1758907817089,0.0367,109960.0,109950.0,0.38465757]
[1758907818189,0.1275868,109960.0,109950.0,0.002]
[1758907818492,0.81934927,109960.0,109950.0,0.002]
[1758907818791,0.5275868,109960.0,109950.0,0.002]
[1758907818978,0.81934927,109960.0,109950.0,0.002]
[1758907819685,0.5275868,109960.0,109950.0,0.0928951]
[1758907820184,0.4367,109960.0,109950.0,0.0928951]
[1758907820395,0.5275869,109960.0,109950.0,0.0928951]
[1758907820988,0.5275869,109960.0,109950.0,0.002]
[1758907821894,0.1275869,109960.0,109950.0,0.002]
[1758907822495,0.81934937,109960.0,109950.0,0.002]
[1758907823389,0.1271751,109950.0,109920.0,1.5909145]
[1758907823694,0.03628,109930.0,109920.0,1.5909145]
[1758907824096,0.1271917,109930.0,109920.0,1.5909145]
[1758907824289,0.41895417,109930.0,109920.0,1.5909145]
[1758907824490,0.41901799,109930.0,109920.0,1.5]
[1758907824795,0.83167797,109930.0,109920.0,1.59092]
[1758907825090,0.50789562,109930.0,109920.0,1.59092]
[1758907825294,0.03634382,109930.0,109920.0,1.99092]
[1758907825481,0.01313382,109930.0,109920.0,2.28268247]
[1758907825789,0.01313382,109930.0,109920.0,1.99792]
[1758907826096,0.01313382,109930.0,109920.0,2.28968247]
[1758907826295,0.01313382,109930.0,109920.0,1.59792]
[1758907826597,0.01313382,109930.0,109920.0,1.88568247]
[1758907827396,0.01313382,109930.0,109920.0,1.59392]
[1758907834096,0.10404542,109930.0,109920.0,1.59384]
[1758907834294,0.39580789,109930.0,109920.0,1.59384]
[1758907834695,0.79580789,109930.0,109920.0,1.59384]
[1758907836400,0.79580789,109930.0,109920.0,1.50292]
[1758907836598,0.79580789,109930.0,109920.0,0.003]
[1758907836599,0.81901789,109930.0,109920.0,0.003]
[1758907837504,1.70397789,109930.0,109920.0,0.003]
[1758907838805,0.52725542,109930.0,109920.0,0.0939199]
[1758907839106,0.92110382,109930.0,109920.0,0.0939199]
[1758907839403,0.03634382,109930.0,109920.0,0.0939199]
[1758907839807,0.12725532,109930.0,109920.0,0.0939199]
[1758907840293,0.41901779,109930.0,109920.0,0.0939199]
[1758907840498,0.41901779,109930.0,109920.0,0.003]
[1758907842006,0.12725532,109930.0,109920.0,0.003]
[1758907842707,0.45572141,109930.0,109920.0,0.0939199]
[1758907844614,0.45572141,109930.0,109920.0,0.003]
[1758907845109,1.34032141,109930.0,109920.0,0.0939199]
[1758907846203,1.33996141,109930.0,109920.0,0.003]
[1758907847207,1.33996141,109930.0,109920.0,0.0939198]
[1758907847706,1.33996141,109930.0,109920.0,0.003]
[1758907848413,1.73996141,109930.0,109920.0,0.003]
[1758907849708,0.85572141,109930.0,109920.0,0.003]
[1758907850017,1.73972141,109930.0,109920.0,0.003]
[1758907852403,1.76334429,109930.0,109920.0,0.003]
[1758907853102,0.87934429,109930.0,109920.0,0.0939197]
[1758907853413,1.76290429,109930.0,109920.0,0.0939197]
[1758907853707,1.76290429,109930.0,109920.0,0.003]
[1758907854110,1.76290429,109930.0,109900.0,0.0909362]
[1758907854111,0.03508,109900.0,109890.0,0.0909445]
[1758907854313,0.36354609,109900.0,109890.0,0.0909445]
[1758907854507,0.45448239,109900.0,109890.0,1.5909445]
[1758907854707,0.45454621,109900.0,109890.0,1.5909445]
[1758907855208,0.45454621,109900.0,109890.0,1.5959445]
[1758907856010,0.52628475,109900.0,109890.0,1.5959445]
[1758907856508,0.53862132,109900.0,109890.0,1.5959445]
[1758907857208,0.53862132,109900.0,109890.0,1.5939445]
[1758907857607,0.86708741,109900.0,109890.0,1.5939445]
[1758907857807,0.53862132,109900.0,109890.0,1.5939445]
[1758907858214,0.53862132,109900.0,109890.0,0.0939445]
[1758907858416,0.045,109890.0,109870.0,8.74e-05]
[1758907858617,0.045,109890.0,109860.0,0.08041414]
[1758907858618,0.03508,109850.0,109840.0,0.17139664]
[1758907858914,0.03508,109850.0,109840.0,1.5909825]
[1758907859107,0.36354609,109850.0,109840.0,1.5909825]
[1758907859514,0.36366458,109850.0,109840.0,1.5909825]
[1758907860517,0.44964238,109850.0,109840.0,1.5909825]
[1758907861407,0.44964238,109850.0,109840.0,1.5929825]
[1758907861611,0.12117629,109850.0,109840.0,1.5929825]
[1758907861816,0.35866458,109850.0,109840.0,1.5929825]
[1758907862314,0.19360283,109850.0,109840.0,1.5929825]
[1758907862613,0.43109082,109850.0,109840.0,1.5929825]
[1758907862810,0.10262473,109850.0,109840.0,2.32144859]
[1758907863013,0.03019849,109850.0,109840.0,2.32144859]
[1758907863502,0.03019849,109850.0,109840.0,1.9929825]
[1758907863707,0.35866458,109850.0,109840.0,2.32144859]
[1758907864308,0.03019849,109850.0,109840.0,2.32144859]
[1758907864504,0.00868849,109850.0,109840.0,2.32144859]
[1758907864709,0.00011849,109850.0,109840.0,2.41248596]
[1758907867518,0.01326849,109850.0,109840.0,2.41248596]
[1758907868114,0.34173458,109850.0,109840.0,2.41248596]
[1758907868313,0.43271258,109850.0,109840.0,2.4798225]
[1758907869010,0.43271258,109850.0,109840.0,1.502]
[1758907869717,0.10424649,109850.0,109840.0,1.5929863]
[1758907869922,0.34173458,109850.0,109840.0,1.5929863]
[1758907870117,0.01326849,109850.0,109840.0,1.5929863]
[1758907870312,0.34173458,109850.0,109840.0,1.92145239]
[1758907870722,0.01326849,109850.0,109840.0,1.5929863]
[1758907872420,0.10424649,109850.0,109840.0,1.5929863]
[1758907872822,0.01326849,109850.0,109840.0,1.5929863]
[1758907875621,0.10424649,109850.0,109840.0,1.502]
[1758907876122,0.10424649,109850.0,109840.0,1.5929863]
[1758907876329,0.01326849,109850.0,109840.0,1.5929863]
[1758907878728,0.10424659,109850.0,109840.0,1.5929863]
[1758907880124,0.44685584,109850.0,109840.0,1.5929863]
[1758907880525,0.01326849,109850.0,109840.0,1.5929863]
[1758907884336,0.84685574,109850.0,109840.0,1.5929863]
[1758907885528,0.84685574,109850.0,109840.0,1.502]
[1758907885724,0.85907202,109850.0,109840.0,1.502]
[1758907885936,0.90551429,109850.0,109840.0,0.002]
[1758907886235,0.1269045,109830.0,109820.0,0.0910021]
[1758907886527,0.1269045,109830.0,109820.0,1.5910021]
[1758907886721,0.46951375,109830.0,109820.0,0.0910021]
[1758907887029,0.4932172,109830.0,109820.0,0.0910021]
[1758907887224,0.4932172,109830.0,109820.0,1.5910021]
[1758907887827,0.05961345,109830.0,109820.0,1.5910021]
[1758907888028,0.05961345,109830.0,109820.0,1.5920021]
[1758907888432,0.15060795,109830.0,109820.0,1.5920021]
[1758907888732,0.4932172,109830.0,109820.0,1.5920021]
[1758907889138,0.15060795,109830.0,109820.0,1.5920021]
[1758907889326,0.4932172,109830.0,109820.0,1.5920021]
[1758907890925,0.4932172,109830.0,109820.0,1.501]
[1758907891129,0.1269212,109810.0,109800.0,0.0910156]
[1758907891330,0.1506347,109810.0,109800.0,0.0910156]
[1758907891527,0.0596235,109810.0,109800.0,1.5910156]
[1758907892135,0.03591,109810.0,109800.0,1.5910156]
[1758907892529,0.36504212,109810.0,109800.0,1.92014772]
[1758907893423,0.36504212,109810.0,109800.0,1.5950156]
[1758907893631,0.43878347,109810.0,109800.0,1.5950156]
[1758907893831,0.52979467,109810.0,109800.0,1.5950156]
[1758907894831,0.53279467,109810.0,109800.0,1.5910156]
[1758907895033,0.53279467,109810.0,109800.0,1.5]
[1758907895627,0.55648339,109810.0,109800.0,1.5]
[1758907896230,0.93279467,109810.0,109800.0,1.5]
[1758907896442,0.1252195,109800.0,109790.0,0.09110129]
[1758907896734,0.36340746,109800.0,109790.0,0.09110129]
[1758907896937,0.36340746,109800.0,109790.0,1.59110129]
[1758907897234,0.45442696,109800.0,109790.0,1.59110129]
[1758907897638,0.45542696,109800.0,109790.0,1.59110129]
[1758907898528,0.78455908,109800.0,109790.0,1.59110129]
[1758907899126,0.03527534,109800.0,109790.0,1.92023341]
[1758907899538,0.36440746,109800.0,109790.0,1.92023341]
[1758907899737,0.36440746,109800.0,109790.0,1.59110129]
[1758907899929,0.36440746,109800.0,109790.0,1.92023341]
[1758907900125,0.36440746,109800.0,109790.0,1.59110129]
[1758907900436,0.01390534,109800.0,109790.0,1.59110129]
[1758907900626,0.01390534,109800.0,109790.0,2.32023341]
[1758907901841,0.01390534,109800.0,109790.0,1.92023341]
[1758907902533,0.01390534,109800.0,109790.0,1.93394949]
[1758907903543,0.00107534,109800.0,109790.0,1.93394949]
[1758907903841,0.00107534,109800.0,109790.0,2.33394949]
[1758907904236,0.01390534,109800.0,109790.0,1.99110129]
[1758907904437,0.10492484,109800.0,109790.0,1.99110129]
[1758907905343,0.10492484,109800.0,109790.0,2.48198129]
[1758907905643,0.12859795,109800.0,109790.0,2.48198129]
[1758907906235,0.12859869,109800.0,109790.0,2.48198129]
[1758907906443,0.12859869,109800.0,109790.0,1.50007789]
[1758907906838,0.13059879,109800.0,109790.0,1.50007789]
[1758907907038,0.13059912,109800.0,109790.0,1.50007789]
[1758907907238,0.13059912,109800.0,109790.0,2.50007789]
[1758907907441,0.13059912,109800.0,109790.0,2.59110569]
[1758907907738,0.13059912,109800.0,109790.0,2.50007789]
[1758907907938,0.13059912,109800.0,109790.0,2.59110579]
[1758907908647,0.13059912,109800.0,109790.0,2.50007789]
[1758907908944,0.13059912,109800.0,109790.0,2.59102579]
[1758907909752,0.13059912,109800.0,109790.0,2.49999789]
[1758907910645,0.83714732,109800.0,109790.0,2.49999789]
[1758907910848,0.85851732,109800.0,109790.0,0.344]
[1758907911247,0.85851732,109800.0,109790.0,0.4350279]
[1758907911549,0.85851732,109800.0,109790.0,0.344]
[1758907915049,0.55196912,109800.0,109790.0,0.4350278]
[1758907915450,0.85851732,109800.0,109790.0,0.4350278]
[1758907915652,0.85851732,109800.0,109790.0,0.344]
[1758907917655,0.85851732,109800.0,109790.0,0.4350278]
[1758907918154,0.15196912,109800.0,109790.0,0.4350278]
[1758907918344,1.04228912,109800.0,109790.0,0.4350278]
[1758907919557,0.92759534,109800.0,109790.0,0.4350278]
[1758907919856,0.01590534,109800.0,109790.0,0.8350278]
[1758907920652,0.03590534,109800.0,109790.0,0.8350278]
[1758907920851,0.01590534,109800.0,109790.0,0.8350278]
[1758907922353,0.00307534,109800.0,109790.0,1.23265482]
[1758907922862,0.00307534,109800.0,109790.0,1.81658662]
[1758907924060,0.01590534,109800.0,109790.0,1.81654662]
[1758907924553,0.12829484,109800.0,109790.0,1.3257878]
[1758907924950,0.12829484,109800.0,109790.0,0.4349878]
[1758907925149,0.43484304,109800.0,109790.0,0.34396]
[1758907925356,0.45864493,109800.0,109790.0,0.34396]
[1758907926452,0.85864493,109800.0,109790.0,0.34396]
[1758907927252,0.85864493,109800.0,109790.0,0.27212291]
[1758907928254,0.1141227,109760.0,109750.0,1.604147]
[1758907928459,0.11421109,109760.0,109750.0,1.604147]
[1758907928648,0.12710109,109760.0,109750.0,1.51309]
[1758907928851,0.12710109,109760.0,109750.0,1.604151]
[1758907929454,0.12810109,109760.0,109750.0,1.604151]
[1758907929958,0.2001788,109760.0,109750.0,1.604151]
[1758907930262,0.0962361,109760.0,109750.0,1.604151]
[1758907930951,0.00108839,109760.0,109750.0,2.004151]
[1758907936163,0.00108839,109760.0,109750.0,1.604151]
[1758907936462,0.00108839,109760.0,109750.0,2.894511]
[1758907938956,0.00108839,109760.0,109750.0,2.894351]
[1758907940967,0.00108839,109760.0,109750.0,2.893711]
[1758907941165,0.00108839,109760.0,109750.0,1.603991]
[1758907941364,0.10503109,109760.0,109750.0,2.493431]
[1758907941562,0.01397839,109760.0,109750.0,2.493431]
[1758907941955,0.10503109,109760.0,109750.0,2.40269]
[1758907942157,0.10503109,109760.0,109750.0,2.38976]
[1758907942361,0.10503109,109760.0,109750.0,2.480821]
[1758907942556,0.10503109,109760.0,109750.0,1.591061]
[1758907942764,0.10503109,109760.0,109750.0,1.5]
[1758907942971,0.41157929,109760.0,109750.0,1.591061]
[1758907943166,0.01397839,109760.0,109750.0,1.591061]
[1758907943470,0.10503109,109760.0,109750.0,1.591061]
[1758907943770,0.01397839,109760.0,109750.0,1.591061]
[1758907943972,0.01397839,109760.0,109750.0,1.604151]
[1758907944170,0.10503109,109760.0,109750.0,1.604151]
[1758907944471,0.10503109,109760.0,109750.0,1.591061]
[1758907944867,0.10503109,109760.0,109750.0,1.5]
[1758907945470,0.41157929,109760.0,109750.0,1.5]
[1758907946365,0.81157929,109760.0,109750.0,1.5]
[1758907947369,0.81157929,109760.0,109750.0,1.5910611]
[1758907947568,0.81157929,109760.0,109750.0,1.5]
[1758907947770,1.69957929,109760.0,109750.0,1.5910611]
[1758907947965,1.69957929,109760.0,109750.0,1.5]
[1758907948768,1.69957929,109760.0,109740.0,0.09113658]
[1758907948970,0.4335692,109750.0,109740.0,0.11358658]
[1758907949469,0.4335692,109750.0,109740.0,1.61358658]
[1758907949674,0.127021,109750.0,109740.0,1.61358658]
[1758907950080,0.127021,109750.0,109740.0,1.61558658]
[1758907950883,0.03596,109750.0,109740.0,1.62867658]
[1758907951280,0.02315839,109760.0,109750.0,0.126601]
[1758907951481,0.03604839,109760.0,109750.0,0.126601]
[1758907951679,0.70150109,109760.0,109750.0,0.126601]
[1758907952081,0.61044839,109760.0,109750.0,0.126601]
[1758907952381,0.70150109,109760.0,109750.0,0.126601]
[1758907952581,0.70150109,109760.0,109750.0,0.113511]
[1758907952776,1.00804929,109760.0,109750.0,0.113511]
[1758907953784,0.70150109,109760.0,109750.0,0.113511]
[1758907954177,0.70150109,109760.0,109750.0,0.113311]
[1758907954675,0.61044839,109760.0,109750.0,0.126401]
[1758907954985,0.03604839,109760.0,109750.0,0.126401]
[1758907955182,0.12710109,109760.0,109750.0,0.126401]
[1758907955687,1.01938109,109760.0,109750.0,0.126401]
[1758907957286,1.01938109,109760.0,109750.0,0.113311]
[1758907957487,1.32592929,109760.0,109750.0,0.113311]
[1758907957787,1.01938109,109760.0,109750.0,0.126671]
[1758907959280,0.92832839,109760.0,109750.0,0.126671]
[1758907959473,8.839e-05,109760.0,109750.0,0.126671]
[1758907959678,8.839e-05,109760.0,109750.0,0.526671]
[1758907960486,8.839e-05,109760.0,109750.0,0.126671]
[1758907962388,8.839e-05,109760.0,109750.0,0.526671]
[1758907966191,0.12542339,109790.0,109780.0,0.03591]
[1758907966588,0.12542339,109790.0,109780.0,0.02255]
[1758907966589,0.4812515,109790.0,109780.0,0.02255]
[1758907967190,0.48131632,109790.0,109780.0,0.1135862]
[1758907967394,0.48631632,109790.0,109780.0,0.1279462]
[1758907967895,0.14316821,109790.0,109780.0,0.1279462]
[1758907968094,0.02809482,109790.0,109780.0,0.1279462]
[1758907968998,0.00506482,109790.0,109780.0,0.1279462]
[1758907969398,0.02809482,109790.0,109780.0,0.1279462]
[1758907969792,0.09941005,109790.0,109780.0,0.1279462]
[1758907970399,0.07638005,109790.0,109780.0,0.1279462]
[1758907971609,0.00506482,109790.0,109780.0,0.5279462]
[1758907974707,0.00506482,109790.0,109780.0,1.75969431]
[1758907974910,0.00506482,109790.0,109780.0,1.85078143]
[1758907975109,0.07424321,109800.0,109790.0,0.1269379]
[1758907975306,0.37576457,109820.0,109810.0,0.02255]
[1758907976110,0.71898858,109820.0,109810.0,0.02255]
[1758907976307,0.37584047,109820.0,109810.0,0.02255]
[1758907976508,0.71898858,109820.0,109810.0,0.02255]
[1758907977116,0.72898858,109820.0,109810.0,0.02355]
[1758907978406,0.73985118,109820.0,109810.0,0.02355]
[1758907978606,0.8134038,109820.0,109810.0,0.02355]
[1758907979008,0.8064038,109820.0,109810.0,0.02255]
[1758907980605,0.5756438,109820.0,109810.0,0.02255]
[1758907980810,1.4625638,109820.0,109810.0,0.02255]
[1758907981606,1.4625638,109820.0,109810.0,0.1135611]
[1758907981906,1.4625638,109820.0,109810.0,0.02255]
[1758907982515,1.11941569,109820.0,109810.0,0.02255]
[1758907982705,0.5756438,109820.0,109810.0,0.02255]
[1758907983014,1.4620838,109820.0,109810.0,0.02255]
[1758907983601,1.4620838,109820.0,109810.0,0.87006921]
[1758907983602,0.0030759,109820.0,109810.0,0.87006921]
[1758907984113,0.0030759,109820.0,109810.0,0.96113145]
[1758907985012,0.0030759,109820.0,109810.0,0.9719855]
[1758907985213,0.0030759,109820.0,109810.0,0.96113145]
[1758907985615,7.59e-05,109820.0,109810.0,0.96313145]
[1758907986507,7.59e-05,109820.0,109810.0,0.96113145]
[1758907987308,7.59e-05,109820.0,109810.0,0.61798334]
[1758907987517,7.59e-05,109820.0,109810.0,0.96113145]
[1758907988215,7.59e-05,109820.0,109810.0,0.9721034]
[1758907988518,0.0010759,109820.0,109810.0,0.9721034]
[1758907989814,0.0010759,109820.0,109810.0,1.8583034]
[1758907990015,0.0010759,109820.0,109810.0,1.8582634]
[1758907990214,0.0010759,109820.0,109810.0,0.9721034]
[1758907990409,0.0010759,109820.0,109810.0,1.8582634]
[1758907991003,0.0010759,109820.0,109810.0,0.9721034]
[1758907991416,0.0010759,109820.0,109810.0,1.8582234]
[1758907991814,7.59e-05,109820.0,109810.0,1.8582234]
[1758907992209,0.072949,109830.0,109820.0,0.125953]
[1758907992514,0.1374752,109850.0,109840.0,0.1259365]
[1758907992711,0.1374752,109850.0,109840.0,0.02187]
[1758907993908,0.48062331,109850.0,109840.0,0.02187]
[1758907995206,0.50433558,109850.0,109840.0,0.1128565]
[1758907995411,0.50833558,109850.0,109840.0,0.1128565]
[1758907995815,0.58134406,109850.0,109840.0,0.1128565]
[1758907996513,0.56715798,109850.0,109840.0,0.1128565]
[1758907997306,0.22551595,109850.0,109840.0,0.45489853]
[1758907997509,0.11082018,109850.0,109840.0,0.45489853]
[1758907997713,0.19079668,109850.0,109840.0,0.45489853]
[1758907998614,0.19079668,109850.0,109840.0,0.1259365]
[1758908001407,0.09981848,109850.0,109840.0,0.1259365]
[1758908001611,0.07700848,109850.0,109840.0,0.1259365]
[1758908002213,0.07600848,109850.0,109840.0,0.1259365]
[1758908003419,0.02673395,109850.0,109840.0,0.46851756]
[1758908003716,0.003,109850.0,109840.0,0.86851756]
[1758908004120,0.003,109850.0,109840.0,0.95955493]
[1758908006423,0.003,109850.0,109840.0,1.84519493]
[1758908006824,0.003,109850.0,109840.0,0.95955493]
[1758908007020,0.003,109850.0,109840.0,1.84515493]
[1758908007424,0.003,109850.0,109840.0,0.61697387]
[1758908007620,0.003,109850.0,109840.0,1.50253387]
[1758908008227,0.003,109850.0,109840.0,1.84511493]
[1758908008427,0.003,109850.0,109840.0,1.50253387]
[1758908008821,0.003,109850.0,109840.0,1.84511493]
[1758908009429,0.003,109850.0,109840.0,0.61697387]
[1758908009627,0.003,109850.0,109840.0,1.50249387]
[1758908010028,0.003,109850.0,109840.0,1.84507493]
[1758908010630,0.003,109850.0,109840.0,1.84503493]
[1758908011129,0.003,109850.0,109840.0,1.84499493]
[1758908014233,0.003,109850.0,109840.0,1.84495493]
[1758908014630,0.20953921,109870.0,109860.0,0.1259199]
[1758908014826,0.2197327,109870.0,109860.0,0.03495]
[1758908015027,0.2333127,109870.0,109860.0,0.03495]
[1758908015232,0.2333127,109870.0,109860.0,0.1259199]
[1758908015433,0.2197259,109870.0,109860.0,0.1259199]
[1758908015628,0.09515322,109870.0,109860.0,0.1259199]
[1758908015933,0.1120888,109880.0,109870.0,0.1251716]
[1758908016229,0.13586058,109880.0,109870.0,0.1251716]
[1758908017332,0.04490178,109880.0,109870.0,0.1251716]
[1758908017533,0.13585508,109880.0,109870.0,0.1251716]
[1758908018130,0.02377178,109880.0,109870.0,0.13573428]
[1758908018327,0.12276826,109900.0,109890.0,0.125155]
[1758908018527,0.0555933,109900.0,109890.0,0.125155]
[1758908018729,0.12788474,109900.0,109890.0,0.125155]
[1758908018930,0.0555933,109900.0,109890.0,0.125155]
[1758908019832,0.0691933,109900.0,109890.0,0.112185]
[1758908020222,0.1601301,109900.0,109890.0,0.112185]
[1758908020828,0.48876493,109900.0,109890.0,0.125155]
[1758908021028,0.1601301,109900.0,109890.0,0.125155]
[1758908021233,0.47100249,109900.0,109890.0,0.126155]
[1758908021431,0.14236766,109900.0,109890.0,0.126155]
[1758908021732,0.38006569,109900.0,109890.0,0.03521]
[1758908021926,0.38006569,109900.0,109890.0,0.03421]
[1758908022132,0.38006569,109900.0,109880.0,0.02124]
[1758908022133,0.03473,109890.0,109880.0,0.02124]
[1758908022431,0.69199966,109890.0,109880.0,0.02124]
[1758908022830,0.71573859,109890.0,109880.0,0.02124]
[1758908023239,1.60069859,109890.0,109880.0,0.02124]
[1758908023436,1.27206376,109890.0,109880.0,0.02124]
[1758908023640,1.27202376,109890.0,109880.0,0.02124]
[1758908024228,1.60065859,109890.0,109880.0,0.02124]
[1758908024432,0.05846893,109890.0,109880.0,0.02124]
[1758908024629,0.41962893,109890.0,109880.0,0.03421]
[1758908025138,0.42262893,109890.0,109880.0,0.03421]
[1758908025942,0.06146893,109890.0,109880.0,0.03421]
[1758908026144,0.06147267,109890.0,109880.0,0.03421]
[1758908026346,0.03773,109890.0,109880.0,0.03421]
[1758908026637,0.06147285,109890.0,109880.0,0.03421]
[1758908029539,0.04787285,109890.0,109880.0,0.03421]
[1758908029744,0.003,109890.0,109880.0,0.32639833]
[1758908029941,0.003,109890.0,109880.0,0.03421]
[1758908029942,0.02413,109890.0,109880.0,0.03421]
[1758908030142,0.04788383,109890.0,109880.0,0.03421]
[1758908030343,0.02413,109890.0,109880.0,0.03421]
[1758908030946,0.04788383,109890.0,109880.0,0.03421]
[1758908031248,0.04788699,109890.0,109880.0,0.03421]
[1758908031548,0.02413,109890.0,109880.0,0.03421]
[1758908035046,0.72991833,109890.0,109860.0,0.01308]
[1758908035248,0.03473,109880.0,109870.0,0.02124]
[1758908035451,0.35069016,109880.0,109870.0,0.02124]
[1758908035650,0.75069016,109880.0,109870.0,0.02124]
[1758908036250,0.03473,109870.0,109850.0,0.00160156]
[1758908036551,0.32691833,109860.0,109850.0,0.02284156]
[1758908037747,0.03473,109860.0,109850.0,0.03581156]
[1758908038851,0.02113,109860.0,109850.0,0.03581156]
[1758908039364,0.03473,109860.0,109850.0,0.03581156]
[1758908040257,0.02113,109860.0,109850.0,0.03581156]
[1758908040453,0.0136,109870.0,109850.0,0.03581156]
[1758908040750,0.02113,109870.0,109860.0,0.32639833]
[1758908040955,0.02113,109870.0,109860.0,0.03421]
[1758908041954,0.02113,109870.0,109860.0,0.02124]
[1758908041955,0.32691833,109870.0,109860.0,0.02124]
[1758908042155,0.72691833,109870.0,109860.0,0.02124]
[1758908042550,0.72791833,109870.0,109860.0,0.02124]
[1758908042751,0.43573,109870.0,109860.0,0.02124]
[1758908043050,0.72791833,109870.0,109860.0,0.02124]
[1758908043249,0.43573,109870.0,109860.0,0.02124]
[1758908043654,0.43573,109870.0,109860.0,0.03421]
[1758908044257,0.43573,109870.0,109860.0,0.03405]
[1758908044563,0.43573,109870.0,109860.0,0.02108]
[1758908044758,0.72791833,109870.0,109860.0,0.02108]
[1758908047353,0.43573,109870.0,109860.0,0.02108]
[1758908047554,0.72791833,109870.0,109860.0,0.02108]
[1758908048359,0.43573,109870.0,109860.0,0.02108]
[1758908048554,1.32029,109870.0,109860.0,0.02108]
[1758908048861,1.61247833,109870.0,109860.0,0.02108]
[1758908049062,1.32029,109870.0,109860.0,0.02108]
[1758908049270,1.61247833,109870.0,109860.0,0.02108]
[1758908049458,1.32029,109870.0,109860.0,0.02108]
[1758908049655,1.61247833,109870.0,109860.0,0.02108]
[1758908050260,0.43573,109870.0,109860.0,0.03387]
[1758908050458,0.001,109870.0,109860.0,0.32605833]
[1758908050762,0.79719,109880.0,109870.0,0.03414]
[1758908050960,0.79719,109880.0,109870.0,0.32632833]
[1758908051161,0.79719,109880.0,109870.0,0.03414]
[1758908051363,0.03499,109880.0,109870.0,0.03414]
[1758908051662,0.02139,109880.0,109870.0,0.32632833]
[1758908051968,0.02139,109890.0,109880.0,0.03414]
[1758908052154,0.02139,109890.0,109880.0,0.32632833]
[1758908052356,0.02139,109890.0,109880.0,0.03414]
[1758908052862,0.03502,109890.0,109880.0,0.03414]
[1758908054966,0.03502,109890.0,109880.0,0.02135]
[1758908055161,0.03802,109890.0,109880.0,0.02135]
[1758908055667,0.33020833,109890.0,109880.0,0.02135]
[1758908056068,0.03802,109890.0,109880.0,0.02135]
[1758908056268,0.33020833,109890.0,109880.0,0.02135]
[1758908057362,0.03802,109890.0,109880.0,0.02135]
[1758908057560,0.33020833,109890.0,109880.0,0.02135]
[1758908061371,0.03802,109890.0,109880.0,0.02135]
[1758908061573,0.92222,109890.0,109880.0,0.03414]
[1758908062074,0.02439,109890.0,109880.0,0.03414]
[1758908063568,0.03802,109890.0,109880.0,0.02135]
[1758908066678,0.03802,109890.0,109880.0,0.03414]
[1758908066878,0.02439,109890.0,109880.0,0.03414]
[1758908067473,0.02439,109890.0,109880.0,0.32632833]
[1758908068577,0.02439,109890.0,109880.0,0.03414]
[1758908069278,0.003,109890.0,109880.0,0.32632833]
[1758908069769,0.003,109890.0,109880.0,0.72632833]
[1758908070175,0.03198,109910.0,109880.0,1.10952089]
[1758908070372,0.067,109910.0,109900.0,0.02135]
[1758908070567,0.05337,109910.0,109900.0,0.03414]
[1758908070772,0.12748785,109910.0,109900.0,0.03414]
[1758908070976,0.05337,109910.0,109900.0,0.03414]
[1758908071372,0.067,109910.0,109900.0,0.03414]
[1758908072079,0.07,109910.0,109900.0,0.03414]
[1758908073875,0.07,109910.0,109900.0,0.02135]
[1758908074076,0.01363,109900.0,109890.0,0.02135]
[1758908074282,0.32720833,109900.0,109890.0,0.02135]
[1758908075280,0.03502,109890.0,109880.0,0.02135]
[1758908077182,0.03421,109890.0,109880.0,0.03469]
[1758908078278,0.03721,109890.0,109880.0,0.32687833]
[1758908079680,0.03721,109890.0,109880.0,0.03469]
[1758908080382,0.02439,109890.0,109880.0,0.32687833]
[1758908080583,0.02239,109890.0,109880.0,0.32687833]
[1758908081580,0.03521,109890.0,109880.0,0.02135]
[1758908083784,0.03721,109890.0,109880.0,0.02135]
[1758908084578,0.02439,109890.0,109880.0,0.36331323]
[1758908085277,0.02439,109890.0,109880.0,0.03469]